fUST/lending_fUST_20240403
["ID","MTS","AMOUNT","RATE_DAILY","PERIOD"]
[321403394,1712139059980,-830.35,0.00038356,5]
[321403395,1712139059990,-574.87,0.00038356,5]
[321403396,1712139060000,-830.35,0.00038356,5]
[321403397,1712139060010,-574.87,0.00038356,5]
[321403398,1712139060021,-830.35,0.00038356,5]
[321403399,1712139060031,-171.61597521,0.00038356,5]
[321403400,1712139060040,-574.87,0.00038356,5]
[321403401,1712139060050,-830.35,0.00038356,5]
[321403402,1712139060060,-574.87,0.00038356,5]
[321403403,1712139060070,-830.35,0.00038356,5]
[321403404,1712139060080,-830.35,0.00038356,5]
[321403405,1712139060089,-417.80076868,0.00038356,5]
[321403406,1712139060098,-830.43,0.00038356,5]
[321403407,1712139060108,-574.87,0.00038356,5]
[321403408,1712139060118,-503.36043734,0.00038356,5]
[321403409,1712139060127,-574.87,0.00038356,5]
[321403410,1712139060136,-574.87,0.00038356,5]
[321403411,1712139060147,-574.87,0.00038356,5]
[321403412,1712139060156,-574.87,0.00038356,5]
[321403413,1712139060166,-574.87,0.00038356,5]
[321403414,1712139060175,-574.87,0.00038356,5]
[321403415,1712139060185,-575.0817742,0.00038356,5]
[321403416,1712139060194,-500.0,0.00038356,5]
[321403417,1712139060203,-500.0,0.00038356,5]
[321403418,1712139060212,-500.0,0.00038356,5]
[321403419,1712139060223,-517.27554058,0.00038356,5]
[321403420,1712139060232,-500.0,0.00038356,5]
[321403421,1712139060241,-500.0,0.00038356,5]
[321403422,1712139060250,-154.99770603,0.00038356,5]
[321403423,1712139060259,-500.0,0.00038356,5]
[321403424,1712139060268,-508.88675361,0.00038356,5]
[321403425,1712139060278,-500.0,0.00038356,5]
[321403426,1712139060287,-500.0,0.00038356,5]
[321403427,1712139060297,-500.0,0.00038356,5]
[321403428,1712139060306,-500.0,0.00038356,5]
[321403429,1712139060315,-500.0,0.00038356,5]
[321403430,1712139060325,-2289.15,0.00038356,5]
[321403431,1712139060334,-500.0,0.00038356,5]
[321403432,1712139060343,-500.0,0.00038356,5]
[321403433,1712139060352,-2289.15,0.00038356,5]
[321403434,1712139060361,-500.0,0.00038356,5]
[321403435,1712139060370,-2289.15,0.00038356,5]
[321403436,1712139060379,-500.0,0.00038356,5]
[321403437,1712139060389,-500.0,0.00038356,5]
[321403438,1712139060398,-2289.15,0.00038356,5]
[321403439,1712139060406,-500.0,0.00038356,5]
[321403440,1712139060415,-500.0,0.00038356,5]
[321403441,1712139060424,-2289.15,0.00038356,5]
[321403442,1712139060433,-500.0,0.00038356,5]
[321403443,1712139060442,-500.0,0.00038356,5]
[321403444,1712139060452,-2289.15,0.00038356,5]
[321403445,1712139060461,-500.0,0.00038356,5]
[321403446,1712139060471,-500.0,0.00038356,5]
[321403447,1712139060480,-2289.15,0.00038356,5]
[321403448,1712139060489,-500.0,0.00038356,5]
[321403449,1712139060498,-580.33819163,0.00038356,5]
[321403450,1712139060507,-2289.15,0.00038356,5]
[321403451,1712139060516,-2289.15,0.00038356,5]
[321403452,1712139060525,-2289.15,0.00038356,5]
[321403453,1712139060534,-2289.15,0.00038356,5]
[321403454,1712139060545,-860.85219542,0.00038356,5]
[321403455,1712139060788,-1428.29780458,0.00038356,5]
[321403456,1712139060798,-180.4269234,0.00038356,5]
[321403457,1712139060810,-1804.323423,0.00038356,5]
[321403458,1712139060821,-304.3996536,0.00038356,5]
[321403459,1712139060832,-2289.15,0.00038356,5]
[321403460,1712139060841,-2289.15,0.00038356,5]
[321403461,1712139060851,-500.0,0.00038356,5]
[321403462,1712139060860,-2289.15,0.00038356,5]
[321403463,1712139060870,-500.0,0.00038356,5]
[321403464,1712139060879,-2289.15,0.00038356,5]
[321403465,1712139060888,-500.0,0.00038356,5]
[321403466,1712139060898,-500.0,0.00038356,5]
[321403467,1712139060908,-2289.15,0.00038356,5]
[321403468,1712139060918,-2289.15,0.00038356,5]
[321403469,1712139060928,-2289.15,0.00038356,5]
[321403470,1712139060938,-500.0,0.00038356,5]
[321403471,1712139060947,-2289.15,0.00038356,5]
[321403472,1712139060957,-500.0,0.00038356,5]
[321403473,1712139060966,-2289.15,0.00038356,5]
[321403474,1712139060976,-500.0,0.00038356,5]
[321403475,1712139060985,-1517.13469111,0.00038356,5]
[321403490,1712139682802,1215.915624,0.00030698,120]
[321403515,1712140029379,8762.99146537,0.00025,3]
[321403523,1712140044502,156.59751136,0.00019,2]
[321403531,1712140203237,1087.0,0.000313,61]
[321403570,1712140238596,-944.98059897,0.00028579,2]
[321403572,1712140238605,-156.53326933,0.0002858,2]
[321403574,1712140238615,-158.22839683,0.00028581,2]
[321403576,1712140238625,-282.82676597,0.00028581,2]
[321403578,1712140238635,-161.32446484,0.00028581,2]
[321403580,1712140238645,-163.54895507,0.00028582,2]
[321403582,1712140238655,-192.65816132,0.00028582,2]
[321403584,1712140238665,-1305.20173617,0.00028583,2]
[321403586,1712140238674,-300.0,0.00028597,2]
[321403588,1712140238684,-300.0,0.00028597,2]
[321403590,1712140238695,-73.87916995,0.00028598,2]
[321403592,1712140238707,-1222.658836,0.00028598,2]
[321403595,1712140238719,-219.63221788,0.00028598,2]
[321403597,1712140238730,-250.0,0.00029375,2]
[321403599,1712140238740,-566.7123369,0.00029874,2]
[321403601,1712140238749,-700.78769746,0.00030247,4]
[321403603,1712140238759,-14446.6562531,0.00030248,2]
[321403604,1712140238768,-28.8603545,0.00030641,5]
[321403614,1712140238847,-133.67293933,0.00030641,5]
[321403616,1712140238856,-423.648144,0.00030741,2]
[321403618,1712140238866,-420.0,0.00030866,2]
[321403620,1712140238876,-420.0,0.00030866,2]
[321403622,1712140238885,-171.688251,0.00031761,2]
[321403623,1712140238895,-24900.0,0.00031929,2]
[321403625,1712140238904,-165.0,0.00031989,2]
[321403628,1712140238914,-165.0,0.00032,2]
[321403630,1712140238924,-155.01705188,0.00032,4]
[321403632,1712140238934,-151.01661183,0.00032913,30]
[321403634,1712140238945,-165.0,0.00033301,2]
[321403635,1712140238954,-528.0,0.00033315,2]
[321403637,1712140238964,-229.0,0.00033315,2]
[321403639,1712140238974,-151.01661183,0.00033585,7]
[321403642,1712140238983,-1516.17022383,0.00033598,2]
[321403643,1712140238993,-463.84548298,0.00034,4]
[321403646,1712140239002,-151.01661183,0.00034271,4]
[321403647,1712140239012,-169.0,0.00034966,2]
[321403649,1712140239021,-151.01661183,0.0003497,2]
[321403652,1712140239031,-402.88771939,0.00034999,7]
[321403654,1712140239040,-33427.9160526,0.00035,2]
[321403656,1712140239050,-595.1551022,0.00035,2]
[321403658,1712140239060,-315.95281655,0.00035008,4]
[321403660,1712140239069,-1001.44265607,0.00035815,120]
[321403662,1712140239081,-214.47296793,0.00035815,120]
[321403664,1712140239090,-48.19664408,0.000361,7]
[321403839,1712140240753,-1951.80335592,0.000361,7]
[321403841,1712140240763,-2000.0,0.0003611,7]
[321403843,1712140240771,-2000.0,0.0003612,7]
[321403845,1712140240780,-2000.0,0.0003613,7]
[321403847,1712140240789,-595.25573605,0.0003614,7]
[321403864,1712140243663,-315.95281655,0.00035,4]
[321403865,1712140243673,-1452.35960995,0.0003614,7]
[321403866,1712140243683,-10000.0,0.000365,15]
[321403867,1712140243692,-153.0,0.00037205,2]
[321403868,1712140243703,-153.0,0.00037205,2]
[321403869,1712140243712,-153.0,0.00037205,2]
[321403870,1712140243721,-153.0,0.00037205,2]
[321403871,1712140243731,-153.0,0.00037205,2]
[321403872,1712140243741,-306.0,0.00037397,2]
[321403873,1712140243752,-9747.12998918,0.00037534,3]
[321404006,1712141433345,-210.31341368,0.00033117,4]
[321404007,1712141433356,-170.855526,0.00033118,2]
[321404008,1712141433365,-2807.80898399,0.00033949,4]
[321404009,1712141433374,-219.73947899,0.0003395,4]
[321404010,1712141433383,-211.824072,0.00033952,2]
[321404011,1712141433392,-463.84548298,0.00034,4]
[321404012,1712141433403,-216.23930836,0.000342,2]
[321404014,1712141433413,-721.90725782,0.00034297,2]
[321404015,1712141433422,-1084.275725,0.00034399,120]
[321404017,1712141433433,-505.39007461,0.000344,2]
[321404019,1712141433442,-47.80067659,0.00035052,2]
[321404022,1712141433454,-591.47725141,0.00035052,2]
[321404023,1712141433470,-24260.722072,0.00035052,2]
[321404024,1712141433480,-162.53329383,0.00035067,7]
[321404025,1712141433489,-770.38066978,0.00035167,2]
[321404026,1712141433499,-770.38066978,0.00035734,2]
[321404027,1712141433508,-770.38066978,0.00036301,2]
[321404028,1712141433517,-153.0,0.00036712,2]
[321404029,1712141433526,-153.7652439,0.00036712,2]
[321404030,1712141433536,-153.0,0.00036712,2]
[321404031,1712141433545,-202.4511104,0.00036712,2]
[321404032,1712141433554,-202.4511104,0.00036712,2]
[321404033,1712141433565,-153.0,0.00036712,2]
[321404034,1712141433575,-202.4511104,0.00036712,2]
[321404035,1712141433584,-202.4511104,0.00036712,2]
[321404036,1712141433593,-153.0,0.00036712,2]
[321404037,1712141433603,-202.4511104,0.00036712,2]
[321404038,1712141433613,-404.5269456,0.00036712,2]
[321404039,1712141433622,-153.0,0.00036712,2]
[321404040,1712141433632,-153.756453,0.00036712,2]
[321404041,1712141433642,-153.0,0.00036712,2]
[321404042,1712141433652,-153.0,0.00036712,2]
[321404043,1712141433662,-153.0,0.00036712,2]
[321404044,1712141433673,-153.0,0.00036712,2]
[321404045,1712141433683,-153.0,0.00036712,2]
[321404046,1712141433692,-153.0,0.00036712,2]
[321404047,1712141433702,-770.38066978,0.00036867,2]
[321404048,1712141433711,-153.0,0.0003726,2]
[321404049,1712141433720,-153.0,0.0003726,2]
[321404050,1712141433729,-153.0,0.0003726,2]
[321404051,1712141433739,-153.0,0.0003726,2]
[321404052,1712141433748,-153.0,0.0003726,2]
[321404053,1712141433758,-153.0,0.0003726,2]
[321404054,1712141433767,-153.0,0.0003726,2]
[321404055,1712141433777,-153.0,0.0003726,2]
[321404056,1712141433786,-153.0,0.0003726,2]
[321404057,1712141433795,-210.72089525,0.00037433,2]
[321404058,1712141433804,-1500.0,0.00037434,2]
[321404059,1712141433813,-770.38066978,0.00037434,2]
[321404060,1712141433823,-11609.626131,0.00037496,5]
[321404061,1712141433832,-415.99531742,0.00037532,4]
[321404062,1712141433841,-172.66616545,0.00037533,15]
[321404063,1712141433858,-594.66801164,0.00037533,2]
[321404064,1712141433869,-335.27257701,0.00037533,4]
[321404065,1712141433880,-211.72753638,0.00037533,4]
[321404066,1712141433891,-754.8727318,0.00037533,4]
[321404124,1712141438843,-1323.235,0.00037533,4]
[321404126,1712141438859,-3016.30884,0.00037533,4]
[321404138,1712141443928,-18491.47000275,0.00037533,4]
[321404176,1712141674891,958.54449742,0.00038895,30]
[321404177,1712141676628,196.3260705,0.00021,2]
[321404184,1712141935953,-866.98998772,0.0002499,2]
[321404185,1712141935980,-1862.50241933,0.00024991,2]
[321404186,1712141936002,-156.53326933,0.00024991,2]
[321404187,1712141936024,-1305.20173617,0.00024992,2]
[321404188,1712141936047,-722.99063153,0.00025,2]
[321404279,1712142632019,-156.53326933,0.00028143,2]
[321404281,1712142632028,-529.63631036,0.00028144,2]
[321404282,1712142632039,-1612.71822044,0.00028769,2]
[321404283,1712142632048,-2300.97137316,0.0002877,2]
[321404284,1712142632058,-700.78769746,0.00031359,4]
[321404285,1712142632068,-772.828982,0.0003136,2]
[321404286,1712142632077,-189.024072,0.00031399,2]
[321404287,1712142632088,-250.0,0.00031595,2]
[321404288,1712142632097,-813.206793,0.0003184,120]
[321404289,1712142632107,-5101.04053788,0.00032719,2]
[321404358,1712142638127,-1316.0,0.00032719,2]
[321404360,1712142638138,-4952.08974342,0.00032719,2]
[321404362,1712142638150,-4153.5004972,0.00032719,2]
[321404365,1712142638159,-447.90232167,0.00033757,7]
[321404367,1712142638169,-500.0,0.00033757,7]
[321404368,1712142638178,-14446.6562531,0.00033758,2]
[321404370,1712142638190,-431.20451986,0.00034069,2]
[321404372,1712142638199,-566.7123369,0.00034169,2]
[321404374,1712142638209,-431.20451986,0.0003491,2]
[321404376,1712142638219,-6872.87554506,0.00035,2]
[321404379,1712142638228,-2424.576002,0.00035332,4]
[321404380,1712142638241,-431.20451986,0.00035751,2]
[321404382,1712142638250,-10000.0,0.000365,20]
[321404384,1712142638259,-431.20451986,0.00036591,2]
[321404387,1712142638270,-153.0,0.00036712,2]
[321404389,1712142638279,-153.0,0.00036712,2]
[321404390,1712142638290,-153.0,0.00036712,2]
[321404392,1712142638299,-153.0,0.00036712,2]
[321404394,1712142638309,-153.0,0.00036712,2]
[321404396,1712142638319,-153.0,0.00036712,2]
[321404398,1712142638329,-153.0,0.00036712,2]
[321404400,1712142638338,-153.0,0.00036712,2]
[321404402,1712142638347,-410.1374557,0.00036795,2]
[321404404,1712142638357,-2815.9135232,0.00036997,2]
[321404406,1712142638365,-153.0,0.00037078,2]
[321404408,1712142638374,-813.206793,0.00037146,120]
[321404410,1712142638383,-1333.46668,0.00037153,6]
[321404412,1712142638392,-1500.0,0.00037432,2]
[321404414,1712142638401,-431.20451986,0.00037432,2]
[321404416,1712142638411,-2126.35779954,0.00037496,5]
[321404418,1712142638419,-10000.0,0.000375,25]
[321404420,1712142638429,-1074.93210379,0.0003753,4]
[321404422,1712142638441,-566.40757227,0.0003753,4]
[321404424,1712142638451,-259.86960239,0.00037531,4]
[321404426,1712142638460,-12935.71974471,0.00037532,2]
[321404428,1712142638468,-464.52912341,0.00037532,4]
[321404429,1712142638478,-470.79348997,0.00037532,4]
[321404430,1712142638487,-692.8804185,0.00037532,4]
[321404431,1712142638496,-628.23840798,0.00037532,4]
[321404432,1712142638505,-155.80734529,0.00037532,4]
[321404433,1712142638515,-160.48661709,0.00037532,2]
[321404434,1712142638525,-156.76106158,0.00037532,4]
[321404435,1712142638534,-315.95281655,0.00037532,4]
[321404436,1712142638543,-48938.92872006,0.00037532,3]
[321404444,1712142640132,-4589.55398904,0.00037532,3]
[321404445,1712142640195,-1499.98691326,0.00037532,3]
[321404446,1712142640207,-6616.2,0.00037532,3]
[321404483,1712142832556,2983.956,0.000245,2]
[321404485,1712142976524,247245.52586952,0.00038856,30]
[321404609,1712143838265,-163.54895507,0.00028145,2]
[321404611,1712143838276,-500.81960684,0.00028146,2]
[321404613,1712143838286,-244.18067602,0.00028148,2]
[321404615,1712143838296,-210.36588987,0.00034899,2]
[321404617,1712143838305,-210.36588986,0.000349,2]
[321404619,1712143838315,-7755.8807425,0.00034999,4]
[321404621,1712143838325,-4821.8458105,0.00035,2]
[321404623,1712143838335,-170.855526,0.00035561,2]
[321404625,1712143838345,-933.87716819,0.00035654,4]
[321404627,1712143838355,-189.024072,0.00035735,2]
[321404629,1712143838365,-446.868566,0.00035785,120]
[321404631,1712143838375,-153.0,0.00036438,2]
[321404633,1712143838385,-153.0,0.00036712,2]
[321404635,1712143838395,-153.0,0.00036712,2]
[321404637,1712143838404,-153.0,0.00036712,2]
[321404639,1712143838414,-153.0,0.00036712,2]
[321404641,1712143838424,-153.0,0.00036712,2]
[321404643,1712143838434,-153.0,0.00036712,2]
[321404645,1712143838446,-153.0,0.00036712,2]
[321404647,1712143838455,-153.0,0.00036712,2]
[321404649,1712143838464,-153.0,0.00036712,2]
[321404651,1712143838474,-153.0,0.00036712,2]
[321404653,1712143838484,-153.0,0.00036712,2]
[321404655,1712143838495,-306.0,0.00036712,2]
[321404657,1712143838505,-306.0,0.00036712,2]
[321404659,1712143838515,-153.0,0.00036712,2]
[321404661,1712143838525,-153.0,0.00036712,2]
[321404663,1712143838534,-153.0,0.00036712,2]
[321404665,1712143838544,-153.0,0.00036712,2]
[321404667,1712143838557,-153.0,0.00036712,2]
[321404669,1712143838567,-355.56305862,0.00036756,2]
[321404671,1712143838576,-153.0,0.00036778,2]
[321404673,1712143838586,-165.10643272,0.00037157,2]
[321404675,1712143838597,-450.61659218,0.0003743,2]
[321404676,1712143838607,-450.61659218,0.00037431,2]
[321404677,1712143838616,-450.61659218,0.00037432,2]
[321404678,1712143838625,-450.61659218,0.00037433,2]
[321404679,1712143838635,-1500.0,0.00037434,2]
[321404680,1712143838646,-450.61659218,0.00037434,2]
[321404681,1712143838655,-153.0,0.000375,2]
[321404682,1712143838665,-500.0,0.00037529,15]
[321404683,1712143838675,-500.0,0.00037529,15]
[321404684,1712143838685,-235.29182211,0.00037529,15]
[321404685,1712143838696,-354.399416,0.00037529,15]
[321404687,1712143838708,-145.600584,0.00037529,15]
[321404688,1712143838716,-402.94514943,0.00037529,15]
[321404689,1712143838726,-156.04866399,0.0003753,4]
[321404690,1712143838737,-416.79034367,0.0003753,4]
[321404691,1712143838746,-891.92389891,0.0003753,4]
[321404848,1712145040483,-500.81960684,0.00035428,4]
[321404849,1712145040493,-473.25480915,0.00035429,2]
[321404850,1712145040502,-202.17296299,0.00035654,4]
[321404851,1712145040513,-150.0,0.000361,7]
[321404852,1712145040522,-3455.4234933,0.00036223,2]
[321404853,1712145040531,-562.836746,0.00036255,120]
[321404854,1712145040540,-308.127224,0.00036541,2]
[321404855,1712145040549,-215.9379195,0.00036678,2]
[321404856,1712145040559,-153.0,0.00036678,2]
[321404857,1712145040568,-153.0,0.00036778,2]
[321404858,1712145040577,-153.0,0.00036778,2]
[321404859,1712145040586,-166.44899975,0.00037157,2]
[321404860,1712145040595,-153.0,0.00037178,2]
[321404861,1712145040605,-153.0,0.00037178,2]
[321404862,1712145040614,-400.0,0.00037199,2]
[321404863,1712145040624,-400.0,0.00037199,2]
[321404864,1712145040633,-153.0,0.000372,2]
[321404865,1712145040642,-153.0,0.000372,2]
[321404866,1712145040651,-153.0,0.000372,2]
[321404867,1712145040660,-153.0,0.000372,2]
[321404868,1712145040669,-153.0,0.000372,2]
[321404869,1712145040678,-244.52483239,0.00037353,2]
[321404870,1712145040687,-153.0,0.000374,2]
[321404871,1712145040697,-153.0,0.000374,2]
[321404872,1712145040706,-153.0,0.000374,2]
[321404873,1712145040715,-153.0,0.000374,2]
[321404874,1712145040724,-153.0,0.000374,2]
[321404875,1712145040734,-427.95859631,0.0003753,2]
[321404876,1712145040743,-202.01436772,0.0003753,4]
[321404877,1712145040753,-238.07212372,0.0003753,4]
[321404878,1712145040764,-252.81959649,0.0003753,2]
[321404879,1712145040773,-1137.43677143,0.0003753,4]
[321404880,1712145040782,-402.72579119,0.00037531,4]
[321404881,1712145040791,-1205.79810438,0.00037531,4]
[321404882,1712145040803,-1378.62517909,0.00037531,4]
[321404883,1712145040814,-9915.0,0.00037531,4]
[321404884,1712145040825,-382.21454755,0.00037531,4]
[321404916,1712145538932,1299.999999,0.00038852,30]
[321404940,1712146232648,-500.81960684,0.00028147,2]
[321404941,1712146232658,-244.18067602,0.00028148,2]
[321404942,1712146232668,-574.31679582,0.0003,2]
[321404943,1712146232678,-4821.8458105,0.00035,2]
[321404944,1712146232687,-170.855526,0.00035631,2]
[321404945,1712146232697,-933.87716819,0.00035654,4]
[321404946,1712146232707,-189.024072,0.00035731,2]
[321404947,1712146232718,-533.844701,0.00035753,120]
[321404948,1712146232727,-168.389325,0.00036258,2]
[321404950,1712146232737,-434.02422564,0.00036752,2]
[321404952,1712146232748,-166.00147741,0.00037156,2]
[321404953,1712146232757,-400.0,0.00037427,2]
[321404955,1712146232768,-400.0,0.00037427,2]
[321404957,1712146232778,-176.96347108,0.0003743,8]
[321404958,1712146232787,-817.03422243,0.00037432,2]
[321404960,1712146232797,-2000.0,0.000375,2]
[321404962,1712146232807,-7755.8807425,0.0003753,4]
[321404964,1712146232816,-163.54895507,0.0003753,4]
[321404965,1712146232825,-595.1551022,0.0003753,2]
[321404966,1712146232836,-315.95281655,0.0003753,4]
[321404967,1712146232845,-500.0,0.00037531,15]
[321404968,1712146232853,-235.29182211,0.00037531,15]
[321404969,1712146232864,-4899.16191308,0.00037531,4]
[321404970,1712146232874,-500.0,0.00037531,7]
[321404971,1712146232885,-500.0,0.00037531,7]
[321404972,1712146232895,-500.0,0.00037531,7]
[321404973,1712146232904,-500.0,0.00037531,7]
[321404974,1712146232914,-500.0,0.00037531,7]
[321404975,1712146232923,-500.0,0.00037531,7]
[321404976,1712146232933,-500.0,0.00037531,7]
[321404977,1712146232944,-500.0,0.00037531,7]
[321404978,1712146232954,-500.0,0.00037531,7]
[321404979,1712146232964,-500.0,0.00037531,7]
[321404980,1712146232974,-233.8597082,0.00037531,7]
[321404981,1712146232985,-500.0,0.00037531,7]
[321404982,1712146232995,-500.0,0.00037531,7]
[321404983,1712146233004,-500.0,0.00037531,7]
[321404984,1712146233014,-500.0,0.00037531,7]
[321404985,1712146233024,-463.84548298,0.00037532,4]
[321404986,1712146233035,-208.84415989,0.00037532,4]
[321404987,1712146233045,-184.10329178,0.00037532,4]
[321404988,1712146233056,-22432.7354606,0.00037532,2]
[321405012,1712146238657,-13861.25710812,0.00037532,2]
[321405019,1712146238715,-2583.19353789,0.00037532,2]
[321405110,1712146243683,-166.00147741,0.00037156,2]
[321405111,1712146243693,-1145.80114504,0.00037532,2]
[321405112,1712146243702,-410.49862294,0.00037533,4]
[321405113,1712146243711,-500.0,0.00037533,15]
[321405114,1712146243721,-18923.93875461,0.00037534,4]
[321405115,1712146243732,-1151.47032719,0.00037534,4]
[321405129,1712146246572,-1387.70489789,0.00035,2]
[321405130,1712146246685,-402.09746584,0.00035,2]
[321405133,1712146549506,-655.715908,0.00036756,120]
[321405134,1712146549572,-174.97,0.00038353,120]
[321405135,1712146574356,39149.90302855,0.00038853,60]
[321405179,1712147433447,-350.57372479,0.00034999,4]
[321405181,1712147433457,-7148.53772451,0.00035,2]
[321405185,1712147433494,-431.72773483,0.00035,2]
[321405186,1712147433504,-210.36588987,0.000353,2]
[321405187,1712147433515,-40.75576551,0.00036477,2]
[321405236,1712147438852,-169.61012435,0.00036477,2]
[321405237,1712147438861,-491.786931,0.00036577,120]
[321405239,1712147438871,-0.83794465,0.00036748,2]
[321405275,1712147441036,-351.16205535,0.00036748,2]
[321405276,1712147441045,-352.0,0.00036748,2]
[321405277,1712147441056,-289.34948376,0.00036753,2]
[321405278,1712147441065,-166.00147741,0.00037156,2]
[321405279,1712147441075,-1500.0,0.00037434,2]
[321405280,1712147441085,-1310.82343152,0.00037434,2]
[321405290,1712147443987,-367.85473439,0.00037434,2]
[321405341,1712147535289,10000.0,0.00025,10]
[321405343,1712147897896,18292.83283011,0.0003022,22]
[321405461,1712148638028,-329.0,0.00028119,2]
[321405462,1712148638087,-171.81960684,0.00028119,2]
[321405463,1712148638098,-400.65125889,0.0002812,2]
[321405464,1712148638108,-400.65125889,0.0003312,2]
[321405465,1712148638119,-1000.0,0.00034,2]
[321405466,1712148638129,-400.0,0.00035293,2]
[321405467,1712148638140,-400.0,0.00035293,2]
[321405468,1712148638150,-718.49304184,0.00035294,2]
[321405489,1712148641982,-4613.32823728,0.00035294,2]
[321405490,1712148642099,-4542.15177893,0.00035294,2]
[321405514,1712148643122,-769.40652503,0.00035294,2]
[321405515,1712148643134,-365.07313135,0.00035294,2]
[321405516,1712148643233,-1909.95022175,0.00035294,2]
[321405593,1712149009344,-703.76582234,0.00033184,4]
[321405594,1712149009368,-350.57372479,0.00033185,4]
[321405595,1712149009392,-1269.64763777,0.00033185,4]
[321405596,1712149009417,-150.0,0.00033194,2]
[321405597,1712149009442,-1306.3721208,0.00033863,2]
[321405598,1712149009467,-300.0,0.00034997,2]
[321405599,1712149009491,-300.0,0.00034997,2]
[321405600,1712149009515,-10092.01639148,0.00034998,4]
[321405601,1712149009539,-431.72773483,0.00035,2]
[321405713,1712149832298,-350.57372479,0.00032897,4]
[321405715,1712149832307,-150.0,0.00032898,2]
[321405717,1712149832317,-1853.381917,0.0003393,120]
[321405719,1712149832329,-170.855526,0.00034409,2]
[321405721,1712149832338,-317.89174477,0.00034865,2]
[321405723,1712149832348,-24900.0,0.00034956,2]
[321405725,1712149832358,-500.0,0.00034999,7]
[321405727,1712149832367,-500.0,0.00034999,7]
[321405730,1712149832376,-500.0,0.00034999,7]
[321405733,1712149832385,-500.0,0.00034999,7]
[321405736,1712149832394,-339.51150149,0.00034999,7]
[321405739,1712149832404,-500.0,0.00034999,7]
[321405742,1712149832414,-500.0,0.00034999,7]
[321405745,1712149832424,-500.0,0.00034999,7]
[321405747,1712149832434,-500.0,0.00034999,7]
[321405749,1712149832443,-540.90097863,0.00034999,7]
[321405751,1712149832452,-500.0,0.00034999,7]
[321405753,1712149832461,-500.0,0.00034999,7]
[321405755,1712149832471,-500.0,0.00034999,7]
[321405757,1712149832481,-500.0,0.00034999,7]
[321405759,1712149832491,-500.0,0.00034999,7]
[321405761,1712149832500,-500.0,0.00034999,7]
[321405763,1712149832511,-500.0,0.00034999,7]
[321405765,1712149832521,-500.0,0.00034999,7]
[321405767,1712149832532,-500.0,0.00034999,7]
[321405769,1712149832541,-500.0,0.00034999,7]
[321405771,1712149832552,-500.0,0.00034999,7]
[321405773,1712149832562,-500.0,0.00034999,7]
[321405775,1712149832572,-500.0,0.00034999,7]
[321405777,1712149832582,-500.0,0.00034999,7]
[321405779,1712149832592,-500.0,0.00034999,7]
[321405781,1712149832603,-500.0,0.00034999,7]
[321405784,1712149832613,-500.0,0.00034999,7]
[321405785,1712149832623,-500.0,0.00034999,7]
[321405787,1712149832634,-500.0,0.00034999,7]
[321405789,1712149832643,-500.0,0.00034999,7]
[321405792,1712149832654,-500.0,0.00034999,7]
[321405793,1712149832664,-500.0,0.00034999,7]
[321405796,1712149832676,-500.0,0.00034999,7]
[321405798,1712149832688,-500.0,0.00034999,7]
[321405800,1712149832699,-500.0,0.00034999,7]
[321405802,1712149832709,-500.0,0.00034999,7]
[321405804,1712149832719,-500.0,0.00034999,7]
[321405806,1712149832729,-500.0,0.00034999,7]
[321405808,1712149832738,-500.0,0.00034999,7]
[321405810,1712149832748,-500.0,0.00034999,7]
[321405812,1712149832758,-500.0,0.00034999,7]
[321405814,1712149832768,-500.0,0.00034999,7]
[321405816,1712149832780,-500.0,0.00034999,7]